[Event "Paris FIDE GP"]
[Site "Elancourt"]
[Date "2013.10.03"]
[Round "10"]
[White "Fressinet, Laurent"]
[Black "Bacrot, Etienne"]
[Result "0-1"]
[ECO "E97"]
[WhiteElo "2708"]
[BlackElo "2723"]
[Annotator "ChessBase Website"]
[PlyCount "48"]
[EventDate "2013.09.22"]
[EventType "tourn"]
[EventRounds "11"]
[EventCountry "FRA"]
[EventCategory "20"]
[SourceTitle "CBM 157"]
[Source "ChessBase"]
[SourceDate "2013.11.12"]
[SourceVersion "1"]
[SourceVersionDate "2013.11.12"]
[SourceQuality "1"]
[TimeControl "40/7200:20/3600:900+30"]
[WhiteClock "2:00:00"]
[BlackClock "2:00:00"]

1. d4 {[%emt 0:00:03]} Nf6 {[%emt 0:00:06]} 2. c4 {[%emt 0:00:07]} g6 {[%emt 0:
00:05]} 3. Nc3 {[%emt 0:00:49]} Bg7 {[%emt 0:00:03]} 4. e4 {[%emt 0:00:05]} d6
{[%emt 0:00:07]} 5. Be2 {[%emt 0:00:08]} O-O {[%emt 0:00:12]} 6. Nf3 {[%emt 0:
00:04]} e5 {[%emt 0:00:12]} 7. O-O {[%emt 0:00:05]} Nc6 {[%emt 0:00:09]} 8. d5
{[%emt 0:00:04]} Ne7 {[%emt 0:00:06]} 9. b4 {[%emt 0:00:05]} Nh5 {[%emt 0:00:
49]} 10. Re1 {[%emt 0:00:13]} f5 {[%emt 0:00:47]} 11. Ng5 {[%emt 0:00:09]} Nf6
{[%emt 0:00:39]} 12. Bf3 {[%emt 0:00:43]} h6 {[%emt 0:03:19]} 13. Ne6 {[%emt 0:
00:25]} Bxe6 {[%emt 0:00:02]} 14. dxe6 {[%emt 0:00:07]} c6 {[%emt 0:00:10]} 15.
exf5 $6 {[%emt 0:42:40]} (15. Be3) (15. b5 $142 {[%csl Rd6][%cal Gc1a3]} fxe4
16. Nxe4 Nxe4 17. Bxe4 d5 18. cxd5 cxd5 19. Ba3 {[%csl Re7]} dxe4 20. Qxd8
Rfxd8 21. Bxe7 Re8 22. Bc5 $14 {[%csl Rg7]}) 15... gxf5 {[%emt 0:16:53]} 16.
Bb2 $6 {[%emt 0:04:21]} (16. b5 $142 e4 17. Be2 Ne8 18. Bb2 Nc7 {Fressinet})
16... e4 {[%emt 0:18:29]} 17. Be2 {[%emt 0:03:24]} (17. Bh5 $142 $5 {Bacrot}
Nxh5 18. Qxh5 Qe8) 17... Ng6 {[%emt 0:02:31]} 18. b5 {[%emt 0:07:13]} Qe7 {
[%emt 0:03:48]} 19. bxc6 {[%emt 0:07:31]} bxc6 {[%emt 0:00:03]} 20. Rb1 {
[%emt 0:03:15][%csl Rb1,Rb2]} Qxe6 $17 {[%emt 0:03:31]} 21. Bf1 {[%emt 0:06:10]
} Rab8 {[%emt 0:04:39]} 22. c5 $2 {[%emt 0:09:00] The French duel resulted in
a strangely one-sided game as Fressinet basically collapsed out of the opening.
He made a couple of strange decisions, but the truly bad ones started with 22.
c5? after which some simple moves left White down two pawns and in the
receiving end of a deadly attack.} Ng4 {[%emt 0:17:40]} 23. Qc2 {[%emt 0:07:14]
} Qe5 {[%emt 0:05:22]} 24. g3 {[%emt 0:00:04]} Qxc5 {[%emt 0:01:18]} 0-1